bitfinex-derivatives/quotes_BTCF0:USTF0_20251030
["timestamp","ask_amount","ask_price","bid_price","bid_amount"]
[1761848871107,0.02420936,107390.0,107380.0,0.41761]
[1761848871499,0.04420936,107390.0,107380.0,0.41761]
[1761848872620,0.0550849,107390.0,107380.0,0.05681]
[1761848872912,0.4158849,107390.0,107380.0,0.05681]
[1761848873613,0.7158849,107390.0,107380.0,0.05681]
[1761848874216,0.3550849,107390.0,107380.0,0.05681]
[1761848875411,0.43126314,107390.0,107380.0,0.05681]
[1761848875617,0.79206314,107390.0,107380.0,0.05681]
[1761848876409,0.79213276,107390.0,107380.0,0.05681]
[1761848876811,0.43133276,107390.0,107380.0,0.05681]
[1761848877320,0.75385276,107390.0,107380.0,0.05681]
[1761848877517,0.43133276,107390.0,107380.0,0.05681]
[1761848877722,0.48385276,107390.0,107380.0,0.05681]
[1761848878321,0.84465276,107390.0,107380.0,0.05681]
[1761848878711,1.12465276,107390.0,107380.0,0.05681]
[1761848879120,1.14971712,107390.0,107380.0,0.05681]
[1761848879316,0.00248,107380.0,107370.0,0.03614]
[1761848879524,0.43507898,107380.0,107370.0,0.05836]
[1761848879823,0.71507898,107380.0,107370.0,0.05836]
[1761848880324,0.00248,107370.0,107360.0,0.20466]
[1761848880513,0.75759898,107370.0,107360.0,0.20466]
[1761848880711,0.00248,107360.0,107350.0,0.05902]
[1761848881015,0.05124,107360.0,107350.0,0.05902]
[1761848881217,0.02303898,107360.0,107350.0,0.41982]
[1761848881522,0.34555898,107360.0,107350.0,0.41982]
[1761848882324,0.36679898,107360.0,107350.0,0.41982]
[1761848882626,0.34779898,107360.0,107350.0,0.41982]
[1761848882825,0.36779898,107360.0,107350.0,0.41982]
[1761848883125,0.36879898,107360.0,107350.0,0.41982]
[1761848883917,0.02427898,107360.0,107350.0,0.41982]
[1761848884424,0.34679898,107360.0,107350.0,0.41982]
[1761848884624,0.02427898,107360.0,107350.0,0.41982]
[1761848884927,0.02179898,107360.0,107350.0,0.41982]
[1761848885128,0.41015109,107380.0,107370.0,0.05828]
[1761848885326,0.73015109,107380.0,107370.0,0.05828]
[1761848885530,1.08609806,107380.0,107370.0,0.05828]
[1761848885826,1.05268093,107380.0,107370.0,0.05828]
[1761848886227,1.05268093,107380.0,107370.0,0.03606]
[1761848886426,0.00248,107370.0,107360.0,0.05828]
[1761848886620,0.36328,107370.0,107360.0,0.05828]
[1761848886926,0.75016093,107370.0,107360.0,0.03606]
[1761848887128,0.75016093,107370.0,107360.0,0.01286]
[1761848888426,0.00248,107350.0,107340.0,0.05828]
[1761848888622,0.38684673,107350.0,107340.0,0.05828]
[1761848892126,0.45968543,107350.0,107340.0,0.05828]
[1761848892328,0.82048543,107350.0,107340.0,0.05828]
[1761848893327,0.46968543,107350.0,107340.0,0.05828]
[1761848893534,0.83048543,107350.0,107340.0,0.05828]
[1761848895127,1.02479716,107350.0,107340.0,0.05828]
[1761848895329,0.00248,107340.0,107330.0,0.057]
[1761848895531,0.65759173,107340.0,107330.0,0.057]
[1761848895826,0.00124,107330.0,107320.0,0.39634]
[1761848896031,0.37504,107330.0,107320.0,0.057]
[1761848896226,0.98015173,107330.0,107320.0,0.057]
[1761848896536,0.00248,107320.0,107310.0,0.057]
[1761848896833,0.41328,107320.0,107310.0,0.057]
[1761848897430,0.80444544,107320.0,107310.0,0.057]
[1761848897934,0.4240336,107320.0,107310.0,0.057]
[1761848898236,0.61961632,107320.0,107310.0,0.057]
[1761848898431,0.81519904,107320.0,107310.0,0.057]
[1761848898627,0.81519904,107320.0,107310.0,0.06]
[1761848898828,0.61961632,107320.0,107310.0,0.06]
[1761848899328,0.61961632,107320.0,107310.0,0.062]
[1761848899532,0.81519904,107320.0,107310.0,0.062]
[1761848900325,0.61961632,107320.0,107310.0,0.062]
[1761848900938,0.22066507,107340.0,107330.0,0.01388]
[1761848900939,0.02508235,107340.0,107330.0,0.01388]
[1761848901128,0.40998187,107370.0,107340.0,0.05802]
[1761848901129,0.41929948,107370.0,107340.0,0.05802]
[1761848901430,0.38328,107370.0,107360.0,0.05866]
[1761848902437,0.38428,107370.0,107360.0,0.05866]
[1761848903027,0.38328,107370.0,107360.0,0.05866]
[1761848903227,0.02248,107370.0,107360.0,0.05866]
[1761848903438,0.06342872,107370.0,107360.0,0.05866]
[1761848904431,0.6703807,107370.0,107360.0,0.01334]
[1761848904734,0.69247228,107370.0,107360.0,0.01334]
[1761848905127,0.38588235,107390.0,107360.0,0.05902]
[1761848905440,0.3608,107440.0,107430.0,0.04568]
[1761848905629,0.73772,107440.0,107430.0,0.04568]
[1761848905941,0.37692,107440.0,107420.0,0.40648]
[1761848906136,0.0608846,107440.0,107420.0,0.40648]
[1761848906329,0.3508846,107440.0,107430.0,0.04568]
[1761848906531,0.6778046,107440.0,107430.0,0.04568]
[1761848906738,0.6808046,107440.0,107430.0,0.04568]
[1761848907224,0.3908046,107440.0,107430.0,0.04568]
[1761848907430,0.3138846,107440.0,107430.0,0.40648]
[1761848907730,0.6426846,107440.0,107430.0,0.40648]
[1761848908241,0.6427246,107440.0,107430.0,0.40648]
[1761848908636,0.0378846,107440.0,107430.0,0.40648]
[1761848908837,0.6636446,107440.0,107430.0,0.40648]
[1761848909442,0.0378846,107440.0,107430.0,0.40648]
[1761848909628,0.6446446,107440.0,107430.0,0.40648]
[1761848911438,0.0378846,107440.0,107430.0,0.40648]
[1761848911638,0.6745646,107440.0,107430.0,0.40648]
[1761848912735,0.6343646,107440.0,107430.0,0.40648]
[1761848913439,0.0378846,107440.0,107430.0,0.41982]
[1761848913641,0.6842846,107440.0,107430.0,0.41982]
[1761848914040,0.6542846,107440.0,107430.0,0.66397198]
[1761848914541,0.0178846,107440.0,107430.0,0.66397198]
[1761848914748,0.3442446,107440.0,107430.0,0.66397198]
[1761848915444,0.3442446,107440.0,107430.0,0.66677198]
[1761848915636,0.3442446,107440.0,107430.0,0.66397198]
[1761848915838,0.0178846,107440.0,107430.0,0.66397198]
[1761848916042,0.3442446,107440.0,107430.0,0.66397198]
[1761848916438,0.0178846,107440.0,107430.0,0.66397198]
[1761848916844,0.3441646,107440.0,107430.0,0.66397198]
[1761848917250,0.3441246,107440.0,107430.0,0.66397198]
[1761848918946,0.3411246,107440.0,107430.0,0.66397198]
[1761848919651,0.3371246,107440.0,107430.0,0.66497198]
[1761848921049,0.4032246,107440.0,107430.0,0.66497198]
[1761848922049,0.0769846,107440.0,107430.0,0.66497198]
[1761848922348,0.4029446,107440.0,107430.0,0.81127198]
[1761848922749,0.4029046,107440.0,107430.0,0.81127198]
[1761848923152,0.0769846,107440.0,107430.0,0.81127198]
[1761848923344,0.4029046,107440.0,107430.0,0.81127198]
[1761848924252,0.0769846,107440.0,107430.0,0.81127198]
[1761848924446,0.4028246,107440.0,107430.0,0.81127198]
[1761848924952,0.0769846,107440.0,107430.0,0.81127198]
[1761848925552,0.4027446,107440.0,107430.0,0.81127198]
[1761848925854,0.0769846,107440.0,107430.0,0.81127198]
[1761848926046,0.4027446,107440.0,107430.0,0.81127198]
[1761848927250,0.4027446,107440.0,107430.0,0.56712]
[1761848927440,0.4227446,107440.0,107430.0,0.56712]
[1761848928247,0.4227446,107440.0,107430.0,0.81127198]
[1761848928447,0.4027446,107440.0,107430.0,0.81127198]
[1761848928648,0.4227446,107440.0,107430.0,0.81127198]
[1761848929950,0.44415077,107440.0,107430.0,0.81127198]
[1761848930150,0.44404977,107440.0,107430.0,0.56712]
[1761848930650,0.44404977,107440.0,107430.0,0.81127198]
[1761848932248,0.11828977,107440.0,107430.0,0.81127198]
[1761848932652,0.44372977,107440.0,107430.0,0.81127198]
[1761848932853,0.44372977,107440.0,107430.0,0.66497198]
[1761848933253,0.44372977,107440.0,107430.0,0.42082]
[1761848933463,0.11828977,107440.0,107430.0,0.42082]
[1761848933656,0.44372977,107440.0,107430.0,0.42082]
[1761848933856,0.44368977,107440.0,107430.0,0.42082]
[1761848934262,0.44364977,107440.0,107430.0,0.42082]
[1761848934455,0.44376839,107440.0,107430.0,0.42082]
[1761848934959,0.44376839,107440.0,107430.0,0.66497198]
[1761848935160,0.44376839,107440.0,107430.0,0.42082]
[1761848937064,0.44376839,107440.0,107430.0,0.66497198]
[1761848937962,0.44376839,107440.0,107430.0,0.42082]
[1761848938164,0.44376839,107440.0,107430.0,0.66497198]
[1761848938359,0.47376839,107440.0,107430.0,0.06002]
[1761848938558,0.50718552,107440.0,107430.0,0.06002]
[1761848938754,0.50718552,107440.0,107430.0,0.001]
[1761848938956,1.60990224,107440.0,107430.0,0.001]
[1761848939358,1.36575026,107440.0,107430.0,0.001]
[1761848939558,1.82369966,107440.0,107430.0,0.001]
[1761848939958,1.82649966,107440.0,107430.0,0.001]
[1761848940158,1.72375026,107440.0,107430.0,0.001]
[1761848940760,1.72655026,107440.0,107430.0,0.001]
[1761848940964,1.72375026,107440.0,107430.0,0.001]
[1761848941155,2.07065164,107440.0,107430.0,0.001]
[1761848941356,0.98649966,107440.0,107430.0,0.001]
[1761848941656,1.46785164,107440.0,107430.0,0.001]
[1761848942266,1.47065164,107440.0,107430.0,0.001]
[1761848943760,1.48065164,107440.0,107430.0,0.001]
[1761848943964,1.47065164,107440.0,107430.0,0.001]
[1761848945756,1.48065164,107440.0,107430.0,0.001]
[1761848945957,1.47065164,107440.0,107430.0,0.001]
[1761848946558,0.90113966,107440.0,107430.0,0.0582]
[1761848946765,0.44336839,107440.0,107430.0,0.66315198]
[1761848947362,0.44384839,107440.0,107430.0,0.66315198]
[1761848947569,0.09840839,107440.0,107430.0,0.66315198]
[1761848947757,0.44384839,107440.0,107430.0,0.66315198]
[1761848948166,0.44380839,107440.0,107430.0,0.419]
[1761848948361,0.44380839,107440.0,107430.0,0.0582]
[1761848948565,0.72380839,107440.0,107430.0,0.0582]
[1761848948868,0.75725962,107440.0,107430.0,0.01372]
[1761848949166,0.75725962,107440.0,107430.0,0.0582]
[1761848949364,0.95240793,107440.0,107430.0,0.0582]
[1761848949670,0.72695733,107440.0,107430.0,0.0582]
[1761848949870,0.43185962,107440.0,107430.0,0.25334831]
[1761848950069,0.75721962,107440.0,107430.0,0.25334831]
[1761848950267,0.13185962,107440.0,107430.0,0.61414831]
[1761848950570,0.11840839,107440.0,107430.0,0.61414831]
[1761848950869,0.09840839,107440.0,107430.0,0.80929662]
[1761848951168,0.56376839,107440.0,107430.0,0.80929662]
[1761848951365,0.09840839,107440.0,107430.0,1.42767385]
[1761848951565,0.42376839,107440.0,107430.0,1.42767385]
[1761848953556,0.42368839,107440.0,107430.0,1.019]
[1761848953767,0.44368839,107440.0,107430.0,0.419]
[1761848953971,0.42368839,107440.0,107430.0,0.419]
[1761848955365,0.44368839,107440.0,107430.0,0.419]
[1761848955570,0.42368839,107440.0,107430.0,0.419]
[1761848955773,0.44368839,107440.0,107430.0,0.419]
[1761848956865,0.60356839,107440.0,107430.0,0.419]
[1761848957272,0.27840839,107440.0,107430.0,0.419]
[1761848957474,0.60356839,107440.0,107430.0,0.419]
[1761848958176,0.09840839,107440.0,107430.0,0.419]
[1761848958472,0.42352839,107440.0,107430.0,0.419]
[1761848959481,0.44352839,107440.0,107430.0,0.419]
[1761848959667,0.42352839,107440.0,107430.0,0.419]
[1761848959977,0.44352839,107440.0,107430.0,0.419]
[1761848960476,0.60348839,107440.0,107430.0,0.419]
[1761848960974,0.53738839,107440.0,107430.0,0.419]
[1761848961378,0.53726839,107440.0,107430.0,0.419]
[1761848962178,0.53718839,107440.0,107430.0,0.419]
[1761848962383,0.53718839,107440.0,107430.0,1.019]
[1761848962677,0.21230839,107440.0,107430.0,1.019]
[1761848962973,0.37718839,107440.0,107430.0,1.019]
[1761848963278,0.37718839,107440.0,107430.0,0.419]
[1761848964776,0.44328839,107440.0,107430.0,0.419]
[1761848966079,0.74328839,107440.0,107430.0,0.419]
[1761848966380,0.74328839,107440.0,107430.0,0.0582]
[1761848966580,0.74328839,107440.0,107430.0,0.03584]
[1761848966877,0.76838028,107440.0,107430.0,0.03571]
[1761848967375,0.76838028,107440.0,107430.0,0.05746]
[1761848967680,0.86832968,107440.0,107430.0,0.05746]
[1761848969082,0.76838028,107440.0,107430.0,0.05746]
[1761848970093,0.86832968,107440.0,107430.0,0.05746]
[1761848970495,1.23912968,107440.0,107430.0,0.03571]
[1761848970798,0.04514,107410.0,107400.0,0.39551]
[1761848971099,0.06666479,107410.0,107400.0,0.4175]
[1761848971301,0.49632479,107410.0,107400.0,0.61267495]
[1761848971497,0.17152479,107410.0,107400.0,0.61267495]
[1761848971702,0.1146857,107430.0,107420.0,0.04374]
[1761848971995,0.38187856,107430.0,107420.0,0.41837]
[1761848972194,0.38187856,107430.0,107420.0,0.61354495]
[1761848972395,0.68162901,107430.0,107420.0,0.61354495]
[1761848973302,0.68362901,107430.0,107420.0,0.41837]
[1761848973692,0.11878901,107430.0,107420.0,0.41837]
[1761848973892,0.44566901,107430.0,107420.0,0.41837]
[1761848975392,0.47075856,107430.0,107420.0,0.41837]
[1761848976297,0.14587856,107430.0,107420.0,0.41837]
[1761848976503,0.74059856,107430.0,107420.0,0.41837]
[1761848976797,0.14587856,107430.0,107420.0,0.41837]
[1761848977302,0.71055856,107430.0,107420.0,0.41837]
[1761848978199,0.14587856,107430.0,107420.0,0.41837]
[1761848978395,0.75051856,107430.0,107420.0,0.41837]
[1761848979302,0.47051856,107430.0,107420.0,0.41837]
[1761848979602,0.74051856,107430.0,107420.0,0.41837]
[1761848980819,0.80661856,107430.0,107420.0,0.40454]
[1761848983107,1.00179351,107430.0,107420.0,0.40454]
[1761848985199,0.97159351,107430.0,107420.0,0.40454]
[1761848985399,0.94650396,107430.0,107420.0,0.40454]
[1761848986112,0.94650396,107430.0,107420.0,0.04374]
[1761848988406,0.75132901,107430.0,107420.0,0.41837]
[1761848989010,0.75132901,107430.0,107420.0,0.05757]
[1761848989902,0.94650396,107430.0,107420.0,0.05757]
[1761848991311,0.94650396,107430.0,107420.0,0.41837]
[1761848992110,0.94650396,107430.0,107420.0,0.05757]
[1761848992716,0.94650396,107430.0,107420.0,0.41837]
[1761848992913,0.75132901,107430.0,107420.0,0.41837]
[1761848993812,0.94650396,107430.0,107420.0,0.41837]
[1761848994414,0.13688901,107430.0,107420.0,0.41837]
[1761848994614,0.76088901,107430.0,107420.0,0.41837]
[1761848995915,0.73924,107430.0,107420.0,0.41837]
[1761848996115,0.76092574,107430.0,107420.0,0.41837]
[1761848997320,0.78604302,107430.0,107420.0,0.41837]
[1761848999813,0.46204302,107430.0,107420.0,0.41837]
[1761849000008,0.77584302,107430.0,107420.0,0.41837]
[1761849000311,0.09178574,107430.0,107420.0,0.61354495]
[1761849000504,0.09178574,107430.0,107420.0,0.61634495]
[1761849000713,0.09178574,107430.0,107420.0,0.75930451]
[1761849000906,0.39398,107430.0,107420.0,0.66620131]
[1761849001216,0.41398,107430.0,107420.0,0.66340131]
[1761849001416,0.0701,107430.0,107420.0,0.66340131]
[1761849001814,0.0701,107430.0,107420.0,0.66620131]
[1761849002018,0.0701,107430.0,107420.0,0.9046231]
[1761849002315,0.565,107440.0,107430.0,0.04329]
[1761849002618,0.46,107440.0,107430.0,1.88039855]
[1761849002820,0.425,107440.0,107430.0,1.28039855]
[1761849003319,0.425,107440.0,107430.0,1.2141745]
[1761849003521,0.3806,107460.0,107450.0,0.00058]
[1761849003723,0.4093502,107460.0,107450.0,0.91735495]
[1761849004018,0.4093502,107460.0,107450.0,1.18218]
[1761849004814,0.46098367,107460.0,107450.0,1.18218]
[1761849005216,0.4393502,107460.0,107450.0,0.72218]
[1761849005522,0.65615004,107460.0,107450.0,1.18189]
[1761849006218,0.90615004,107460.0,107450.0,1.18189]
[1761849006423,0.71097509,107460.0,107450.0,1.18189]
[1761849007917,0.90615004,107460.0,107450.0,0.7216]
[1761849008222,0.71097509,107460.0,107450.0,0.7216]
[1761849008822,0.90615004,107460.0,107450.0,0.7216]
[1761849009022,0.38709509,107460.0,107450.0,0.72218]
[1761849009222,0.71077509,107460.0,107450.0,0.72218]
[1761849009620,0.38709509,107460.0,107450.0,0.72218]
[1761849009819,0.38709509,107460.0,107450.0,1.18218]
[1761849010117,0.41073509,107460.0,107450.0,1.37735495]
[1761849010324,0.08709509,107460.0,107450.0,1.37735495]
[1761849010518,0.3891102,107460.0,107450.0,1.37735495]
[1761849010819,0.3891502,107460.0,107450.0,1.37735495]
[1761849011009,0.0437002,107460.0,107450.0,1.37735495]
[1761849011215,0.32364,107460.0,107450.0,1.38015495]
[1761849011424,0.32364,107460.0,107450.0,1.18498]
[1761849011927,0.32364,107460.0,107450.0,1.5748954]
[1761849012415,0.02177,107480.0,107470.0,0.0288]
[1761849012615,0.42199541,107480.0,107470.0,0.9667077]
[1761849013115,0.40199541,107480.0,107470.0,0.9667077]
[1761849013518,0.02159541,107480.0,107470.0,0.9667077]
[1761849013720,0.03801728,107500.0,107470.0,1.1616654]
[1761849013925,0.33207481,107500.0,107490.0,0.5990477]
[1761849014120,0.10711711,107500.0,107490.0,0.9598477]
[1761849014312,0.62567481,107500.0,107490.0,0.9598477]
[1761849014921,0.30207481,107500.0,107490.0,0.9598477]
[1761849015110,0.62563481,107500.0,107490.0,0.9598477]
[1761849015311,0.43767711,107500.0,107490.0,0.9736377]
[1761849015622,0.05944711,107500.0,107490.0,0.9736377]
[1761849015918,0.38418711,107500.0,107490.0,0.9736377]
[1761849016123,0.40884711,107500.0,107490.0,0.9736377]
[1761849016325,0.41284711,107500.0,107490.0,0.9736377]
[1761849016622,0.46695711,107500.0,107490.0,0.9736377]
[1761849016825,0.44695711,107500.0,107490.0,0.9736377]
[1761849017016,0.42537042,107500.0,107490.0,0.9736377]
[1761849017722,0.83679344,107500.0,107490.0,0.7216]
[1761849017925,1.13679344,107500.0,107490.0,0.7216]
[1761849018125,1.12979344,107500.0,107490.0,0.7216]
[1761849018330,0.73987804,107500.0,107490.0,0.74441]
[1761849018513,1.12979344,107500.0,107490.0,0.7216]
[1761849019525,0.73587804,107500.0,107490.0,0.9640477]
[1761849019727,0.93083574,107500.0,107490.0,0.76909]
[1761849020326,0.60731574,107500.0,107490.0,0.76909]
[1761849020524,0.93075574,107500.0,107490.0,0.76909]
[1761849021423,0.46579804,107500.0,107490.0,0.76909]
[1761849021735,0.90075574,107500.0,107490.0,0.76909]
[1761849022030,0.38235804,107500.0,107490.0,0.9640477]
[1761849022328,0.49571804,107500.0,107490.0,0.78163]
[1761849022518,0.49571804,107500.0,107490.0,0.9640477]
[1761849023434,0.49567804,107500.0,107490.0,0.9768677]
[1761849024627,0.07824804,107500.0,107490.0,0.9768677]
[1761849024924,0.00881042,107500.0,107490.0,0.9768677]
[1761849025119,0.32328,107500.0,107490.0,0.9768677]
[1761849025525,0.34472494,107500.0,107490.0,0.9768677]
[1761849025828,0.37742276,107500.0,107490.0,0.9768677]
[1761849026124,0.35338276,107500.0,107490.0,0.9768677]
[1761849029026,0.03010276,107500.0,107490.0,1.1718254]
[1761849029230,0.02144494,107500.0,107490.0,1.1746254]
[1761849029420,0.02144494,107500.0,107490.0,1.4978254]
[1761849030421,0.02144494,107500.0,107490.0,1.5908673]
[1761849030830,0.02144494,107500.0,107490.0,1.4978254]
[1761849031530,0.02144494,107500.0,107490.0,1.5908674]
[1761849032631,0.02144494,107500.0,107490.0,1.4978254]
[1761849033230,0.02144494,107500.0,107490.0,1.4950254]
[1761849034131,0.02144494,107500.0,107490.0,1.5908672]
[1761849034930,0.04548494,107500.0,107490.0,1.5880672]
[1761849035235,0.02144494,107500.0,107490.0,1.5880672]
[1761849035437,0.03281591,107510.0,107500.0,0.06061]
[1761849035635,0.05428245,107510.0,107500.0,0.9576254]
[1761849035830,0.04550654,107510.0,107500.0,0.9576254]
[1761849036031,0.06791654,107510.0,107500.0,0.9576254]
[1761849036623,0.0543119,107510.0,107500.0,0.9576254]
[1761849036834,0.04550654,107510.0,107500.0,0.9586254]
[1761849037035,0.02146654,107510.0,107500.0,0.9586254]
[1761849037333,0.02146654,107510.0,107500.0,1.2476163]
[1761849037532,0.22814728,107530.0,107520.0,0.0471]
[1761849037733,0.26961936,107530.0,107520.0,0.9636577]
[1761849038044,0.24961936,107530.0,107520.0,0.9705177]
[1761849038544,0.09303936,107530.0,107520.0,1.1654754]
[1761849038839,0.02347208,107530.0,107520.0,1.2584913]
[1761849039044,0.002,107530.0,107520.0,1.2584913]
[1761849040334,0.002,107530.0,107520.0,1.453449]
[1761849040641,0.002,107530.0,107520.0,1.776769]
[1761849041043,0.002,107530.0,107520.0,1.5818113]
[1761849041234,0.003,107530.0,107520.0,1.776769]
[1761849041438,0.003,107530.0,107520.0,1.5817713]
[1761849041740,0.003,107530.0,107520.0,1.776729]
[1761849041942,0.003,107530.0,107520.0,1.2584913]
[1761849042145,0.003,107530.0,107520.0,1.5817713]
[1761849042744,0.003,107530.0,107520.0,1.779529]
[1761849043041,0.08598728,107560.0,107550.0,0.05482]
[1761849043246,0.1661794,107560.0,107550.0,0.9713777]
[1761849043932,0.1661794,107560.0,107550.0,0.9636577]
[1761849044135,0.3611371,107560.0,107550.0,0.9636577]
[1761849044335,0.1401794,107560.0,107550.0,0.9636577]
[1761849044843,0.1471794,107560.0,107550.0,0.9636577]
[1761849045847,0.3721371,107560.0,107550.0,0.9636577]
[1761849046239,0.15206212,107560.0,107550.0,0.9636577]
[1761849048146,0.34701982,107560.0,107550.0,0.9636577]
[1761849049345,0.14606212,107560.0,107550.0,0.9636577]
[1761849049952,0.14306212,107560.0,107550.0,0.9636577]
[1761849050140,0.33801982,107560.0,107550.0,0.9636577]
[1761849050448,0.14306212,107560.0,107550.0,0.9636577]
[1761849050750,0.33801982,107560.0,107550.0,0.9636577]
[1761849051156,0.14306212,107560.0,107550.0,0.9636577]
[1761849051454,0.12864212,107560.0,107550.0,0.9731477]
[1761849052254,0.07623212,107560.0,107550.0,0.9731477]
[1761849052440,0.05219212,107560.0,107550.0,1.1681054]
[1761849052640,0.07521212,107560.0,107550.0,0.9731477]
[1761849052840,0.09823212,107560.0,107550.0,0.9731477]
[1761849056356,0.02346864,107560.0,107550.0,1.3892574]
[1761849056564,0.02511728,107580.0,107570.0,0.1436324]
[1761849056759,0.13554989,107610.0,107570.0,0.1436324]
[1761849056760,0.05858343,107610.0,107600.0,0.05343]
[1761849056951,0.07115728,107620.0,107610.0,0.05649]
[1761849057260,0.10895,107620.0,107610.0,0.8072054]
[1761849057465,0.10895,107620.0,107610.0,0.6122477]
[1761849058066,0.1193145,107620.0,107610.0,0.41729]
[1761849058257,0.1193145,107620.0,107610.0,0.40442]
[1761849058450,0.1223145,107620.0,107610.0,0.6064177]
[1761849059355,0.11195,107620.0,107610.0,0.41146]
[1761849059557,0.43595,107620.0,107610.0,0.41146]
[1761849060263,0.44328884,107620.0,107610.0,0.40742]
[1761849060562,0.68734686,107620.0,107610.0,0.3638]
[1761849060763,0.68428884,107620.0,107610.0,0.3638]
[1761849060962,0.68328884,107620.0,107610.0,0.3628]
[1761849061162,0.39316884,107620.0,107610.0,0.40642]
[1761849061462,0.68316884,107620.0,107610.0,0.40642]
[1761849061665,0.68316884,107620.0,107610.0,0.38419]
[1761849061861,0.68316884,107620.0,107610.0,0.3628]
[1761849061862,1.28596884,107620.0,107610.0,0.3628]
[1761849062160,1.02897626,107620.0,107610.0,0.3628]
[1761849062556,0.92902686,107620.0,107610.0,0.3628]
[1761849062763,0.95414414,107620.0,107610.0,0.3628]
[1761849064057,0.95414414,107620.0,107610.0,0.40642]
[1761849064352,0.41316884,107620.0,107610.0,0.40642]
[1761849065466,0.44663499,107620.0,107610.0,0.3628]
[1761849065668,0.68969301,107620.0,107610.0,0.3628]
[1761849065862,0.99244241,107620.0,107610.0,0.3628]
[1761849066458,0.66856241,107620.0,107610.0,0.3628]
[1761849066765,0.64663499,107620.0,107610.0,0.3628]
[1761849066957,0.90249301,107620.0,107610.0,0.3628]
[1761849067161,0.89649301,107620.0,107610.0,0.3608]
[1761849067362,0.05895,107610.0,107600.0,0.3608]
[1761849067565,0.05895,107610.0,107600.0,0.40442]
[1761849067566,0.41386344,107610.0,107600.0,0.40442]
[1761849068255,1.01386344,107610.0,107600.0,0.40442]
[1761849068556,0.73766344,107610.0,107600.0,0.65144802]
[1761849068864,0.41486344,107610.0,107600.0,0.40442]
[1761849069068,0.45866344,107610.0,107600.0,0.40442]
[1761849070166,0.05895,107600.0,107590.0,0.3608]
[1761849070371,0.62547417,107600.0,107590.0,0.3608]
[1761849070872,0.62827417,107600.0,107590.0,0.3608]
[1761849071072,0.65398989,107600.0,107590.0,0.3608]
[1761849071366,0.74393929,107600.0,107590.0,0.3608]
[1761849071574,0.74393929,107600.0,107590.0,0.3618]
[1761849071772,0.0228,107600.0,107590.0,0.66134802]
[1761849071971,0.05649826,107620.0,107600.0,0.05649]
[1761849072178,0.05649826,107620.0,107610.0,0.77669]
[1761849072179,0.10130912,107620.0,107610.0,0.77669]
[1761849072475,0.42534912,107620.0,107610.0,0.77669]
[1761849073268,0.42634912,107620.0,107610.0,0.76522]
[1761849074771,0.42534912,107620.0,107610.0,0.76522]
[1761849074970,0.42934912,107620.0,107610.0,0.76522]
[1761849075372,0.10530912,107620.0,107610.0,0.76522]
[1761849075680,0.40429884,107620.0,107610.0,0.76522]
[1761849076369,0.41748884,107620.0,107610.0,0.76522]
[1761849077274,0.39748884,107620.0,107610.0,0.76522]
[1761849077570,1.69774177,107620.0,107610.0,0.7216]
[1761849077770,0.05741,107600.0,107590.0,0.40516]
[1761849077971,0.48129,107600.0,107590.0,0.40516]
[1761849079079,0.48129,107600.0,107590.0,0.40616]
[1761849080376,0.48125,107600.0,107590.0,0.40616]
[1761849080575,0.48125,107600.0,107590.0,0.40716]
[1761849081875,0.15741,107600.0,107590.0,0.40716]
[1761849082177,0.48117,107600.0,107590.0,0.40716]
[1761849082377,0.15741,107600.0,107590.0,0.40716]
[1761849082573,0.48113,107600.0,107590.0,0.40716]
[1761849082980,0.69113,107600.0,107590.0,0.04636]
[1761849083276,0.69113,107600.0,107590.0,0.04851]
[1761849083277,0.40606954,107600.0,107590.0,0.04851]
[1761849083481,1.62917129,107600.0,107560.0,0.37227]
[1761849083785,0.0481,107570.0,107560.0,0.4198]
[1761849083978,0.41182,107570.0,107560.0,0.4198]
[1761849084177,0.42518,107570.0,107560.0,0.4198]
[1761849084381,0.42518,107570.0,107560.0,0.40833]
[1761849084575,0.38518,107570.0,107560.0,0.41433]
[1761849084777,0.70518,107570.0,107560.0,0.41433]
[1761849085377,0.70518,107570.0,107560.0,0.41833]
[1761849085789,0.70518,107570.0,107560.0,0.01]
[1761849085790,0.67518,107570.0,107560.0,0.01]
[1761849086092,0.70011954,107570.0,107560.0,0.01]
[1761849086582,0.7105372,107570.0,107560.0,0.01]
[1761849087088,0.06146,107560.0,107550.0,0.40833]
[1761849087387,0.11146,107560.0,107550.0,0.40833]
[1761849088278,0.10146,107560.0,107550.0,0.40833]
[1761849088879,0.40146,107560.0,107550.0,0.40833]
[1761849089487,0.43514,107560.0,107550.0,0.40833]
[1761849089684,0.72514,107560.0,107550.0,0.40833]
[1761849090289,0.70794,107560.0,107550.0,0.40833]
[1761849090490,0.06146,107550.0,107540.0,0.42247]
[1761849090681,0.0981,107550.0,107540.0,0.42247]
[1761849090879,0.11146,107550.0,107540.0,0.40833]
[1761849091280,0.43506,107550.0,107540.0,0.40833]
[1761849091476,0.43506,107550.0,107540.0,0.41033]
[1761849091988,0.43506,107550.0,107540.0,0.41133]
[1761849092585,0.70506,107550.0,107540.0,0.41133]
[1761849092787,0.38506,107550.0,107540.0,0.41133]
[1761849092986,0.71506,107550.0,107540.0,0.41133]
[1761849093387,0.69506,107550.0,107540.0,0.41133]
[1761849093586,0.43506,107550.0,107540.0,0.41133]
[1761849093887,0.38506,107550.0,107540.0,0.41133]
[1761849094190,0.43506,107550.0,107540.0,0.41133]
[1761849094577,0.37416,107560.0,107550.0,0.04753]
[1761849094578,0.06146,107560.0,107550.0,0.04753]
[1761849094791,0.68502,107560.0,107550.0,0.04753]
[1761849096192,0.36146,107560.0,107550.0,0.04753]
[1761849096393,0.11146,107560.0,107550.0,0.04753]
[1761849096595,0.43498,107560.0,107550.0,0.04753]
[1761849096985,0.43494,107560.0,107550.0,0.0604]
[1761849097696,0.43494,107560.0,107550.0,0.04753]
[1761849098582,0.67494,107560.0,107550.0,0.04753]
[1761849098787,0.70494,107560.0,107550.0,0.04753]
[1761849098984,0.43494,107560.0,107550.0,0.04753]
[1761849099187,0.40486,107560.0,107550.0,0.40833]
[1761849099398,0.40486,107560.0,107550.0,0.4212]
[1761849099989,0.0681,107560.0,107550.0,0.4212]
[1761849100190,0.3234,107560.0,107550.0,0.82865293]
[1761849100489,0.3434,107560.0,107550.0,0.82865293]